[Event "EWIRCC 2019"]
[Site "Monte-Carlo"]
[Date "2019.12.01"]
[Round "10.2"]
[White "Zhukova, Natalia"]
[Black "Rogule, Laura"]
[Result "1-0"]
[ECO "A28"]
[WhiteElo "2323"]
[BlackElo "2293"]
[Annotator "NA"]
[PlyCount "71"]
[EventDate "2019.11.28"]
[EventType "swiss"]
[EventCountry "MNC"]
[SourceTitle "playchess.com"]
[Source "ChessBase"]
[SourceQuality "1"]
[TimeControl "5400+30"]

1. c4 {[%emt 1:15:12]} e5 {[%emt 1:15:14]} 2. Nc3 {[%emt 0:00:21]} Nf6 {[%emt 0:00:22]} 3. Nf3 {[%emt 0:00:23]} Nc6 {[%emt 0:00:27]} 4. e4 {[%emt 0:00:22]} Bb4 {[%emt 0:01:04]} 5. d3 {[%emt 0:00:22]} d6 {[%emt 0:00:25]} 6. a3 {[%emt 0:00:22]} Bc5 {[%emt 0:00:44]} 7. b4 {[%emt 0:00:23]} Bb6 {[%emt 0:00:41]} 8. Na4 {[%emt 0:00:23]} Bd4 {[%emt 0:03:28]} 9. Rb1 {[%emt 0:01:42]} h6 {[%emt 0:01:39]} 10. b5 {[%emt 0:02:21]} Ne7 {[%emt 0:00:25]} 11. Nxd4 {[%emt 0:00:23]} exd4 {[%emt 0:00:21]} 12. Be2 {[%emt 0:00:31]} c5 {[%emt 0:01:31]} 13. bxc6 {[%emt 0:01:04]} bxc6 {[%emt 0:00:48]} 14. O-O {[%emt 0:00:24]} Nd7 {[%emt 0:03:55]} 15. Bf4 {[%emt 0:02:35]} Nb6 {[%emt 0:01:47]} 16. c5 {[%emt 0:04:08]} Nxa4 {[%emt 0:01:06]} 17. Qxa4 {[%emt 0:00:28]} dxc5 {[%emt 0:00:35]} 18. Rfc1 {[%emt 0:00:35]} O-O {[%emt 0:00:51]} 19. Rxc5 {[%emt 0:00:26]} Be6 {[%emt 0:01:05]} 20. Be5 {[%emt 0:02:13]} Ng6 {[%emt 0:00:30]} 21. Bg3 {[%emt 0:00:33]} Qf6 {[%emt 0:02:09]} 22. Bf1 {[%emt 0:02:24]} Rfc8 {[%emt 0:01:05]} 23. Rxc6 {[%emt 0:01:45]} h5 {[%emt 0:00:36]} 24. Rxc8+ {[%emt 0:00:39]} Rxc8 {[%emt 0:00:30]} 25. Rb8 {[%emt 0:00:51]} h4 {[%emt 0:00:51]} 26. Rxc8+ {[%emt 0:00:27]} Bxc8 {[%emt 0:00:21]} 27. Bb8 {[%emt 0:00:53]} Bg4 {[%emt 0:00:45]} 28. h3 {[%emt 0:00:52]} Be6 {[%emt 0:00:29]} 29. Bxa7 {[%emt 0:00:34]} Nf4 {[%emt 0:00:29]} 30. Qxd4 {[%emt 0:00:38]} Qg5 {[%emt 0:00:29]} 31. Kh2 {[%emt 0:00:32]} Nxh3 {[%emt 0:00:34]} 32. gxh3 {[%emt 0:00:24]} Qf4+ {[%emt 0:00:24]} 33. Kh1 {[%emt 0:00:48]} Qf3+ {[%emt 0:00:33]} 34. Bg2 {[%emt 0:00:21]} Qd1+ {[%emt 0:00:28]} 35. Kh2 {[%emt 0:00:21]} Kh7 {[%emt 0:00:25]} 36. Qe3 {[%emt 0:00:27]} 1-0

[Event "EWIRCC 2019"]
[Site "Monte-Carlo"]
[Date "2019.12.01"]
[Round "10.3"]
[White "Cramling, Pia"]
[Black "Muzychuk, Anna"]
[Result "1/2-1/2"]
[ECO "A33"]
[WhiteElo "2443"]
[BlackElo "2543"]
[Annotator "ChessBase"]
[PlyCount "63"]
[EventDate "2019.11.28"]
[EventType "swiss"]
[EventCountry "MNC"]
[SourceTitle "playchess.com"]
[Source "ChessBase"]
[SourceQuality "1"]
[TimeControl "5400+30"]

1. Nf3 {[%emt 1:15:11]} c5 {[%emt 1:15:19]} 2. c4 {[%emt 0:00:24]} Nc6 {[%emt 0:00:26]} 3. d4 {[%emt 0:00:24]} cxd4 {[%emt 0:00:23]} 4. Nxd4 {[%emt 0:00:21]} Nf6 {[%emt 0:00:21]} 5. Nc3 {[%emt 0:00:23]} e6 {[%emt 0:00:22]} 6. a3 {[%emt 0:00:55]} Be7 {[%emt 0:00:35]} 7. g3 {[%emt 0:00:26]} b6 {[%emt 0:06:01]} 8. Nxc6 {[%emt 0:01:58]} dxc6 {[%emt 0:00:25]} 9. Qxd8+ {[%emt 0:00:23]} Bxd8 {[%emt 0:00:26]} 10. Bg2 {[%emt 0:00:22]} Bb7 {[%emt 0:01:04]} 11. Nb5 {[%emt 0:00:52]} Ke7 {[%emt 0:00:57]} 12. Bf4 {[%emt 0:00:35]} Ne8 {[%emt 0:00:25]} 13. O-O-O {[%emt 0:01:27]} a6 {[%emt 0:00:29]} 14. Nd6 {[%emt 0:00:55]} Nxd6 {[%emt 0:00:23]} 15. Bxd6+ {[%emt 0:00:33]} Ke8 {[%emt 0:00:21]} 16. Rd3 {[%emt 0:01:48]} h5 {[%emt 0:01:03]} 17. h4 {[%emt 0:00:31]} g5 {[%emt 0:00:27]} 18. hxg5 {[%emt 0:00:37]} Bxg5+ {[%emt 0:00:22]} 19. f4 {[%emt 0:00:31]} Bf6 {[%emt 0:00:51]} 20. c5 {[%emt 0:01:41]} b5 {[%emt 0:01:30]} 21. Bf3 {[%emt 0:01:34]} h4 {[%emt 0:00:44]} 22. g4 {[%emt 0:00:40]} Rd8 {[%emt 0:00:47]} 23. e4 {[%emt 0:00:52]} e5 {[%emt 0:00:28]} 24. g5 {[%emt 0:00:27]} Be7 {[%emt 0:00:26]} 25. Kc2 {[%emt 0:03:08]} exf4 {[%emt 0:01:06]} 26. Be5 {[%emt 0:00:58]} Rxd3 {[%emt 0:00:49]} 27. Kxd3 {[%emt 0:00:21]} Rg8 {[%emt 0:00:21]} 28. Rxh4 {[%emt 0:00:47]} Bxg5 {[%emt 0:00:48]} 29. Rg4 {[%emt 0:00:48]} Rg6 {[%emt 0:01:17]} 30. Bxf4 {[%emt 0:01:29]} Be7 {[%emt 0:00:47]} 31. b4 {[%emt 0:00:37]} Bc8 {[%emt 0:00:24]} 32. Rxg6 {[%emt 0:00:32]} 1/2-1/2

[Event "EWIRCC 2019"]
[Site "Monte-Carlo"]
[Date "2019.12.01"]
[Round "10.6"]
[White "Chiburdanidze, Maia"]
[Black "Batsiashvili, Nino"]
[Result "1/2-1/2"]
[ECO "D30"]
[WhiteElo "2500"]
[BlackElo "2422"]
[Annotator "ChessBase"]
[PlyCount "66"]
[EventDate "2019.11.28"]
[EventType "swiss"]
[EventCountry "MNC"]
[SourceTitle "playchess.com"]
[Source "ChessBase"]
[SourceQuality "1"]
[TimeControl "5400+30"]

1. d4 {[%emt 1:15:12]} Nf6 {[%emt 1:15:11]} 2. Nf3 {[%emt 0:00:21]} d5 {[%emt 0:00:27]} 3. c4 {[%emt 0:00:23]} e6 {[%emt 0:00:22]} 4. e3 {[%emt 0:00:23]} g6 {[%emt 0:00:40]} 5. Bd3 {[%emt 0:00:35]} Bg7 {[%emt 0:00:22]} 6. O-O {[%emt 0:00:29]} O-O {[%emt 0:00:22]} 7. Nc3 {[%emt 0:00:24]} Nbd7 {[%emt 0:01:11]} 8. b3 {[%emt 0:01:25]} c5 {[%emt 0:00:35]} 9. cxd5 {[%emt 0:00:37]} exd5 {[%emt 0:00:32]} 10. Bb2 {[%emt 0:00:25]} b6 {[%emt 0:00:49]} 11. Rc1 {[%emt 0:00:41]} Bb7 {[%emt 0:00:30]} 12. Na4 {[%emt 0:01:17]} Rc8 {[%emt 0:00:29]} 13. Ba3 {[%emt 0:00:33]} Ne4 {[%emt 0:00:52]} 14. dxc5 {[%emt 0:01:06]} Ndxc5 {[%emt 0:02:17]} 15. Nxc5 {[%emt 0:01:25]} bxc5 {[%emt 0:00:40]} 16. Bxe4 {[%emt 0:00:53]} dxe4 {[%emt 0:00:23]} 17. Nd2 {[%emt 0:00:21]} Qd3 {[%emt 0:03:44]} 18. Nc4 {[%emt 0:00:36]} Rfd8 {[%emt 0:00:22]} 19. Qxd3 {[%emt 0:00:32]} exd3 {[%emt 0:00:30]} 20. Rfd1 {[%emt 0:00:51]} Ba6 {[%emt 0:00:37]} 21. Rd2 {[%emt 0:01:07]} Rd5 {[%emt 0:00:59]} 22. Bb2 {[%emt 0:01:52]} Bxc4 {[%emt 0:01:02]} 23. bxc4 {[%emt 0:00:27]} Rd6 {[%emt 0:00:22]} 24. Bxg7 {[%emt 0:00:29]} Kxg7 {[%emt 0:00:21]} 25. Rb1 {[%emt 0:01:16]} Rcd8 {[%emt 0:00:52]} 26. f3 {[%emt 0:00:32]} Ra6 {[%emt 0:01:12]} 27. Rb5 {[%emt 0:02:13]} Rc8 {[%emt 0:00:26]} 28. Rb3 {[%emt 0:01:07]} Ra4 {[%emt 0:00:40]} 29. Rdxd3 {[%emt 0:00:55]} Rxc4 {[%emt 0:00:27]} 30. Rd7 {[%emt 0:00:23]} Rc1+ {[%emt 0:00:41]} 31. Kf2 {[%emt 0:00:21]} Rc2+ {[%emt 0:00:22]} 32. Kg3 {[%emt 0:00:20]} Rxa2 {[%emt 0:00:21]} 33. Rbb7 {[%emt 0:00:22]} Rf8 {[%emt 0:07:50]} 1/2-1/2

[Event "EWIRCC 2019"]
[Site "Monte-Carlo"]
[Date "2019.12.01"]
[Round "10.7"]
[White "Sebag, Marie"]
[Black "Gunina, Valentina"]
[Result "0-1"]
[ECO "B12"]
[WhiteElo "2443"]
[BlackElo "2509"]
[Annotator "ChessBase"]
[PlyCount "82"]
[EventDate "2019.11.28"]
[EventType "swiss"]
[EventCountry "MNC"]
[SourceTitle "playchess.com"]
[Source "ChessBase"]
[SourceQuality "1"]
[TimeControl "5400+30"]

1. e4 {[%emt 1:15:11]} c6 {[%emt 1:15:12]} 2. d4 {[%emt 0:00:22]} d5 {[%emt 0:00:21]} 3. e5 {[%emt 0:00:21]} Bf5 {[%emt 0:00:22]} 4. Nf3 {[%emt 0:00:21]} e6 {[%emt 0:00:21]} 5. Be2 {[%emt 0:00:22]} Nd7 {[%emt 0:00:21]} 6. O-O {[%emt 0:00:23]} h6 {[%emt 0:00:21]} 7. Nbd2 {[%emt 0:00:23]} Ne7 {[%emt 0:00:22]} 8. c3 {[%emt 0:00:24]} a5 {[%emt 0:00:21]} 9. a4 {[%emt 0:00:22]} Qc7 {[%emt 0:00:30]} 10. Nb3 {[%emt 0:00:30]} Bh7 {[%emt 0:01:08]} 11. Ne1 {[%emt 0:00:47]} Nf5 {[%emt 0:00:26]} 12. f4 {[%emt 0:02:32]} Be7 {[%emt 0:00:38]} 13. Bd3 {[%emt 0:00:53]} c5 {[%emt 0:01:09]} 14. dxc5 {[%emt 0:00:34]} Nxc5 {[%emt 0:00:56]} 15. Nxc5 {[%emt 0:00:27]} Bxc5+ {[%emt 0:01:39]} 16. Kh1 {[%emt 0:00:22]} h5 {[%emt 0:00:31]} 17. Bb5+ {[%emt 0:01:43]} Ke7 {[%emt 0:00:21]} 18. Rf3 {[%emt 0:03:11]} h4 {[%emt 0:00:30]} 19. Rh3 {[%emt 0:00:27]} Bg6 {[%emt 0:00:26]} 20. b3 {[%emt 0:02:21]} f6 {[%emt 0:01:22]} 21. Nd3 {[%emt 0:01:54]} Ba7 {[%emt 0:00:23]} 22. Qe1 {[%emt 0:01:07]} Kf7 {[%emt 0:00:40]} 23. c4 {[%emt 0:01:26]} d4 {[%emt 0:02:33]} 24. c5 {[%emt 0:01:33]} Bh5 {[%emt 0:00:22]} 25. Bc4 {[%emt 0:00:31]} Rae8 {[%emt 0:00:22]} 26. Nf2 {[%emt 0:01:11]} Bxc5 {[%emt 0:00:35]} 27. Bd2 {[%emt 0:01:10]} b6 {[%emt 0:02:12]} 28. Rc1 {[%emt 0:00:32]} Qb7 {[%emt 0:00:36]} 29. Bd3 {[%emt 0:01:04]} Rc8 {[%emt 0:02:56]} 30. Bxf5 {[%emt 0:00:49]} exf5 {[%emt 0:00:22]} 31. Rxh4 {[%emt 0:00:22]} Bf3 {[%emt 0:00:38]} 32. Rxh8 {[%emt 0:00:50]} Bxg2+ {[%emt 0:00:23]} 33. Kg1 {[%emt 0:00:22]} Rxh8 {[%emt 0:00:21]} 34. Nd3 {[%emt 0:00:33]} Bh3 {[%emt 0:00:47]} 35. Qg3 {[%emt 0:00:36]} Rh6 {[%emt 0:01:08]} 36. Nxc5 {[%emt 0:00:33]} bxc5 {[%emt 0:00:29]} 37. Rxc5 {[%emt 0:00:27]} fxe5 {[%emt 0:01:42]} 38. fxe5 {[%emt 0:00:54]} Rg6 {[%emt 0:00:22]} 39. Bg5 {[%emt 0:00:33]} Qe4 {[%emt 0:00:45]} 40. e6+ {[%emt 0:00:39]} Qxe6 {[%emt 0:00:50]} 41. Re5 {[%emt 0:00:58]} Rxg5 {[%emt 0:00:51]} 0-1

[Event "EWIRCC 2019"]
[Site "Monte-Carlo"]
[Date "2019.12.01"]
[Round "10.9"]
[White "Michna, Marta"]
[Black "Kashlinskaya, Alina"]
[Result "0-1"]
[ECO "D02"]
[WhiteElo "2366"]
[BlackElo "2486"]
[Annotator "ChessBase"]
[PlyCount "53"]
[EventDate "2019.11.28"]
[EventType "swiss"]
[EventCountry "MNC"]
[SourceTitle "playchess.com"]
[Source "ChessBase"]
[SourceQuality "1"]
[TimeControl "5400+30"]

1. d4 {[%emt 1:15:12]} Nf6 {[%emt 1:15:11]} 2. c3 {[%emt 0:00:24]} d5 {[%emt 0:00:23]} 3. Bf4 {[%emt 0:00:23]} e6 {[%emt 0:00:45]} 4. e3 {[%emt 0:00:43]} Bd6 {[%emt 0:00:22]} 5. Nd2 {[%emt 0:01:02]} O-O {[%emt 0:02:32]} 6. Bg3 {[%emt 0:00:53]} c5 {[%emt 0:00:31]} 7. Bd3 {[%emt 0:01:11]} Nc6 {[%emt 0:00:25]} 8. Ngf3 {[%emt 0:00:22]} b6 {[%emt 0:00:53]} 9. Ne5 {[%emt 0:00:37]} Bb7 {[%emt 0:00:44]} 10. O-O {[%emt 0:01:07]} Qc7 {[%emt 0:00:47]} 11. f4 {[%emt 0:00:53]} Ne7 {[%emt 0:00:23]} 12. Qf3 {[%emt 0:01:18]} Nf5 {[%emt 0:00:28]} 13. Bf2 {[%emt 0:00:38]} Be7 {[%emt 0:00:25]} 14. Qh3 {[%emt 0:06:26]} Nd6 {[%emt 0:01:33]} 15. Rad1 {[%emt 0:01:34]} Nfe4 {[%emt 0:00:47]} 16. dxc5 {[%emt 0:01:27]} bxc5 {[%emt 0:01:22]} 17. c4 {[%emt 0:00:37]} Rad8 {[%emt 0:00:50]} 18. Ndf3 {[%emt 0:01:38]} f6 {[%emt 0:06:23]} 19. Qxe6+ {[%emt 0:01:34]} Kh8 {[%emt 0:00:21]} 20. Bh4 {[%emt 0:00:50]} Bc8 {[%emt 0:01:15]} 21. Qxd5 {[%emt 0:00:21]} fxe5 {[%emt 0:00:29]} 22. fxe5 {[%emt 0:01:19]} Nf5 {[%emt 0:01:29]} 23. Qxe4 {[%emt 0:00:30]} Bb7 {[%emt 0:00:21]} 24. Qg4 {[%emt 0:00:35]} Bxf3 {[%emt 0:00:30]} 25. Rxf3 {[%emt 0:00:38]} Nxh4 {[%emt 0:00:31]} 26. Rh3 {[%emt 0:00:34]} Qxe5 {[%emt 0:00:27]} 27. Qe4 {[%emt 0:00:44]} 0-1

[Event "EWIRCC 2019"]
[Site "Monte-Carlo"]
[Date "2019.12.01"]
[Round "10.14"]
[White "Guichard, Pauline"]
[Black "Belenkaya, Dina"]
[Result "0-1"]
[ECO "D00"]
[WhiteElo "2407"]
[BlackElo "2302"]
[Annotator "NA"]
[PlyCount "102"]
[EventDate "2019.11.28"]
[EventType "swiss"]
[EventCountry "MNC"]
[SourceTitle "playchess.com"]
[Source "ChessBase"]
[SourceQuality "1"]
[TimeControl "5400+30"]

1. d4 {[%emt 1:15:12]} d5 {[%emt 1:15:11]} 2. Bf4 {[%emt 0:00:22]} c5 {[%emt 0:00:21]} 3. e3 {[%emt 0:00:22]} Nc6 {[%emt 0:00:21]} 4. c3 {[%emt 0:00:28]} Nf6 {[%emt 0:00:22]} 5. Nd2 {[%emt 0:00:23]} Bf5 {[%emt 0:00:21]} 6. Ngf3 {[%emt 0:01:05]} e6 {[%emt 0:00:22]} 7. Bb5 {[%emt 0:00:23]} Qb6 {[%emt 0:02:29]} 8. Qa4 {[%emt 0:00:35]} a6 {[%emt 0:01:16]} 9. Bxc6+ {[%emt 0:00:40]} Qxc6 {[%emt 0:00:50]} 10. Qxc6+ {[%emt 0:00:42]} bxc6 {[%emt 0:00:21]} 11. h3 {[%emt 0:01:49]} Nd7 {[%emt 0:00:43]} 12. Nb3 {[%emt 0:01:07]} c4 {[%emt 0:01:03]} 13. Na5 {[%emt 0:01:39]} c5 {[%emt 0:00:53]} 14. b3 {[%emt 0:00:32]} cxd4 {[%emt 0:00:39]} 15. exd4 {[%emt 0:00:26]} Ba3 {[%emt 0:02:50]} 16. Bc1 {[%emt 0:02:15]} Bxc1 {[%emt 0:00:47]} 17. Rxc1 {[%emt 0:00:22]} Rc8 {[%emt 0:02:05]} 18. b4 {[%emt 0:02:45]} Rc7 {[%emt 0:00:44]} 19. O-O {[%emt 0:00:43]} Ke7 {[%emt 0:00:38]} 20. Rfe1 {[%emt 0:00:27]} f6 {[%emt 0:02:13]} 21. Re3 {[%emt 0:00:42]} Kd6 {[%emt 0:00:33]} 22. Rce1 {[%emt 0:01:22]} Re8 {[%emt 0:00:26]} 23. Nh4 {[%emt 0:00:27]} Bc2 {[%emt 0:00:35]} 24. f4 {[%emt 0:00:50]} h6 {[%emt 0:01:04]} 25. R3e2 {[%emt 0:01:19]} Be4 {[%emt 0:00:32]} 26. Kf2 {[%emt 0:01:37]} g5 {[%emt 0:00:28]} 27. fxg5 {[%emt 0:00:21]} hxg5 {[%emt 0:00:26]} 28. Nf3 {[%emt 0:00:22]} Nf8 {[%emt 0:00:51]} 29. Rb2 {[%emt 0:02:00]} Rb8 {[%emt 0:00:48]} 30. Nd2 {[%emt 0:00:32]} Bd3 {[%emt 0:00:56]} 31. a4 {[%emt 0:00:25]} Ng6 {[%emt 0:00:38]} 32. b5 {[%emt 0:00:57]} Rb6 {[%emt 0:00:27]} 33. g3 {[%emt 0:01:05]} e5 {[%emt 0:02:01]} 34. Nf3 {[%emt 0:01:57]} e4 {[%emt 0:00:28]} 35. Ng1 {[%emt 0:00:44]} f5 {[%emt 0:00:25]} 36. Rb4 {[%emt 0:00:21]} axb5 {[%emt 0:01:00]} 37. axb5 {[%emt 0:00:31]} f4 {[%emt 0:00:25]} 38. h4 {[%emt 0:00:43]} Ra7 {[%emt 0:00:46]} 39. Ra1 {[%emt 0:00:30]} e3+ {[%emt 0:00:27]} 40. Kf3 {[%emt 0:00:23]} Rf7 {[%emt 0:00:41]} 41. hxg5 {[%emt 0:00:32]} Be4+ {[%emt 0:00:22]} 42. Ke2 {[%emt 0:00:41]} f3+ {[%emt 0:00:24]} 43. Nxf3 {[%emt 0:00:22]} Rxf3 {[%emt 0:00:35]} 44. Rg1 {[%emt 0:00:38]} Ne7 {[%emt 0:00:32]} 45. g6 {[%emt 0:00:36]} Nxg6 {[%emt 0:00:28]} 46. Nc6 {[%emt 0:00:21]} Rb7 {[%emt 0:00:33]} 47. g4 {[%emt 0:00:38]} Nf4+ {[%emt 0:00:25]} 48. Kd1 {[%emt 0:00:31]} e2+ {[%emt 0:00:54]} 49. Ke1 {[%emt 0:00:33]} Nd3+ {[%emt 0:00:22]} 50. Kxe2 {[%emt 0:00:22]} Nxb4 {[%emt 0:00:27]} 51. Nxb4 {[%emt 0:00:33]} Rxc3 {[%emt 0:00:26]} 0-1

[Event "EWIRCC 2019"]
[Site "Monte-Carlo"]
[Date "2019.12.01"]
[Round "10.19"]
[White "Babiy, Olga"]
[Black "Antova, Gabriela"]
[Result "0-1"]
[ECO "B84"]
[WhiteElo "2249"]
[BlackElo "2314"]
[Annotator "NA"]
[PlyCount "96"]
[EventDate "2019.11.28"]
[EventType "swiss"]
[EventCountry "MNC"]
[SourceTitle "playchess.com"]
[Source "ChessBase"]
[SourceQuality "1"]
[TimeControl "5400+30"]

1. e4 {[%emt 1:15:10]} c5 {[%emt 1:15:13]} 2. Nf3 {[%emt 0:00:21]} d6 {[%emt 0:15:47]} 3. d4 cxd4 {[%emt 0:00:00]} 4. Nxd4 {[%emt 0:00:41]} Nf6 {[%emt 0:00:00]} 5. Nc3 {[%emt 0:00:21]} a6 {[%emt 0:00:00]} 6. Be3 {[%emt 0:00:25]} e6 {[%emt 0:00:00]} 7. Be2 {[%emt 0:00:37]} Be7 {[%emt 0:00:00]} 8. f4 {[%emt 0:01:24]} Qc7 {[%emt 0:00:00]} 9. Qd2 {[%emt 0:00:43]} b5 {[%emt 0:00:00]} 10. Bf3 {[%emt 0:00:22]} Bb7 {[%emt 0:00:00]} 11. a3 {[%emt 0:01:39]} Nbd7 {[%emt 0:00:00]} 12. f5 {[%emt 0:03:24]} e5 {[%emt 0:00:00]} 13. Nde2 {[%emt 0:01:04]} Nb6 {[%emt 0:00:00]} 14. b3 {[%emt 0:00:41]} Rc8 {[%emt 0:00:00]} 15. g4 {[%emt 0:00:34]} h6 {[%emt 0:00:00]} 16. h4 {[%emt 0:00:22]} h5 {[%emt 0:01:29]} 17. g5 {[%emt 0:01:01]} Ng4 {[%emt 0:00:20]} 18. Bxg4 {[%emt 0:01:13]} hxg4 {[%emt 0:00:22]} 19. Kf2 {[%emt 0:00:21]} d5 {[%emt 0:01:03]} 20. exd5 {[%emt 0:04:25]} b4 {[%emt 0:00:20]} 21. axb4 {[%emt 0:01:15]} Bxb4 {[%emt 0:00:22]} 22. Qd3 {[%emt 0:00:20]} Bxc3 {[%emt 0:01:51]} 23. Nxc3 {[%emt 0:00:32]} Nxd5 {[%emt 0:01:24]} 24. Nxd5 {[%emt 0:00:58]} Qxc2+ {[%emt 0:00:21]} 25. Qd2 {[%emt 0:01:17]} Bxd5 {[%emt 0:00:58]} 26. Rhc1 {[%emt 0:00:40]} Qxf5+ {[%emt 0:01:46]} 27. Kg1 {[%emt 0:00:32]} Rd8 {[%emt 0:00:33]} 28. Qh2 {[%emt 0:01:28]} Qe4 {[%emt 0:00:52]} 29. Re1 {[%emt 0:01:04]} Rxh4 {[%emt 0:00:45]} 30. Bb6 {[%emt 0:00:21]} Rxh2 {[%emt 0:01:10]} 31. Rxe4 {[%emt 0:00:21]} g3 {[%emt 0:00:21]} 32. Rxe5+ {[%emt 0:02:24]} Kf8 {[%emt 0:00:20]} 33. Rxd5 {[%emt 0:00:00]} Rxd5 {[%emt 0:00:21]} 34. Bc7 {[%emt 0:00:00]} Rxg5 {[%emt 0:00:32]} 35. Rxa6 {[%emt 0:00:18]} Kg8 {[%emt 0:00:30]} 36. b4 {[%emt 0:00:33]} Rb2 {[%emt 0:00:26]} 37. Ra3 {[%emt 0:00:55]} Rd5 {[%emt 0:00:29]} 38. Ra1 {[%emt 0:00:21]} Rbd2 {[%emt 0:00:26]} 39. Ra8+ {[%emt 0:00:29]} Kh7 {[%emt 0:00:21]} 40. Bxg3 {[%emt 0:00:21]} Rg5 {[%emt 0:00:31]} 41. Ra3 {[%emt 0:00:23]} Rb2 {[%emt 0:00:22]} 42. Kf1 {[%emt 0:00:25]} Rxb4 {[%emt 0:00:24]} 43. Kf2 {[%emt 0:00:23]} Rgb5 {[%emt 0:00:30]} 44. Ra7 {[%emt 0:00:28]} Rb7 {[%emt 0:00:26]} 45. Ra8 {[%emt 0:00:22]} f6 {[%emt 0:00:39]} 46. Kf3 {[%emt 0:00:28]} g5 {[%emt 0:00:26]} 47. Ra6 {[%emt 0:00:30]} Kg6 {[%emt 0:00:25]} 48. Bf2 {[%emt 0:00:22]} Rf4+ {[%emt 0:00:31]} 0-1

[Event "EWIRCC 2019"]
[Site "Monte-Carlo"]
[Date "2019.12.01"]
[Round "10.20"]
[White "Janzelj, Lara"]
[Black "Leconte, Maria"]
[Result "1-0"]
[ECO "E90"]
[WhiteElo "2158"]
[BlackElo "2244"]
[Annotator "NA"]
[PlyCount "61"]
[EventDate "2019.11.28"]
[EventType "swiss"]
[EventCountry "MNC"]
[SourceTitle "playchess.com"]
[Source "ChessBase"]
[SourceQuality "1"]
[TimeControl "5400+30"]

1. d4 {[%emt 1:15:12]} Nf6 {[%emt 1:15:12]} 2. c4 {[%emt 0:00:21]} d6 {[%emt 0:00:21]} 3. Nf3 {[%emt 0:00:25]} Nbd7 {[%emt 0:00:23]} 4. Nc3 {[%emt 0:00:23]} e5 {[%emt 0:00:51]} 5. e4 {[%emt 0:00:22]} c6 {[%emt 0:00:27]} 6. Be3 {[%emt 0:00:36]} g6 {[%emt 0:00:23]} 7. Be2 {[%emt 0:00:31]} Bg7 {[%emt 0:00:23]} 8. h3 {[%emt 0:00:34]} O-O {[%emt 0:00:30]} 9. d5 {[%emt 0:00:22]} Qc7 {[%emt 0:00:43]} 10. g4 {[%emt 0:00:30]} Nc5 {[%emt 0:01:09]} 11. Nd2 {[%emt 0:01:19]} a5 {[%emt 0:02:01]} 12. h4 {[%emt 0:01:03]} b5 {[%emt 0:01:45]} 13. dxc6 {[%emt 0:01:21]} bxc4 {[%emt 0:00:46]} 14. g5 {[%emt 0:00:40]} Nh5 {[%emt 0:01:09]} 15. Nd5 {[%emt 0:02:09]} Qd8 {[%emt 0:00:35]} 16. Bxc5 {[%emt 0:00:55]} dxc5 {[%emt 0:00:23]} 17. Bxh5 {[%emt 0:00:58]} gxh5 {[%emt 0:00:22]} 18. Qxh5 {[%emt 0:00:46]} Ra6 {[%emt 0:03:27]} 19. Rg1 {[%emt 0:05:34]} Rxc6 {[%emt 0:00:31]} 20. Nf6+ {[%emt 0:00:22]} Rxf6 {[%emt 0:00:21]} 21. gxf6 {[%emt 0:00:21]} Qxf6 {[%emt 0:00:22]} 22. O-O-O {[%emt 0:01:29]} Be6 {[%emt 0:02:35]} 23. Qg5 {[%emt 0:01:21]} Kh8 {[%emt 0:00:33]} 24. Rg3 {[%emt 0:01:41]} h6 {[%emt 0:02:17]} 25. Qe3 {[%emt 0:00:41]} Qxh4 {[%emt 0:01:34]} 26. Rdg1 {[%emt 0:00:32]} Bf6 {[%emt 0:00:39]} 27. Qxc5 {[%emt 0:00:40]} Rc8 {[%emt 0:01:16]} 28. Qe3 {[%emt 0:00:45]} c3 {[%emt 0:00:38]} 29. bxc3 {[%emt 0:00:21]} Bg5 {[%emt 0:00:33]} 30. Qf3 {[%emt 0:00:34]} Rd8 {[%emt 0:00:44]} 31. Rxg5 {[%emt 0:00:30]} 1-0